bitfinex/quotes_SOLUSD_20260226
["timestamp","ask_amount","ask_price","bid_price","bid_amount"]
[1772130996939,3.79941952,85.52,85.48,0.5]
[1772130997248,0.1,85.5,85.482,0.5]
[1772130997636,0.1,85.565,85.521,0.49888353]
[1772130997838,10.14308175,85.57,85.521,0.49888353]
[1772130998152,0.1,85.56,85.521,0.49888353]
[1772130998351,10.14308175,85.55,85.511,0.49888353]
[1772130998845,10.14308175,85.55,85.5,10.14308175]
[1772130998846,1e-08,85.564,85.541,0.49888353]
[1772130999051,0.1,85.588,85.541,0.49888353]
[1772130999231,0.1,85.588,85.54,10.14308175]
[1772130999232,0.1,85.588,85.543,0.49888353]
[1772130999844,0.1,85.588,85.551,0.4544758]
[1772131000038,0.1,85.588,85.542,11.69016389]
[1772131000039,0.1,85.578,85.542,11.69016389]
[1772131000561,6.0,114.69,85.542,11.69016389]
[1772131000562,0.1,85.624,85.571,0.4544758]
[1772131000733,0.1,85.634,85.591,0.4544758]
[1772131000934,29.17731638,85.683,85.621,0.4544758]
[1772131001151,10.24308175,85.68,85.631,0.4544758]
[1772131001352,0.1,85.671,85.599,3.69383402]
[1772131001551,10.14308175,85.69,85.641,0.4544758]
[1772131001754,0.1,85.699,85.641,0.4544758]
[1772131002051,0.1,85.699,85.62,10.14308175]
[1772131002052,0.1,85.71,85.656,0.4544758]
[1772131002254,11.66719372,85.711,85.656,0.4544758]
[1772131002255,10.14308175,85.7,85.66,10.14308175]
[1772131002437,11.66719372,85.711,85.634,0.4544758]
[1772131002438,0.1,85.679,85.634,0.4544758]
[1772131002640,0.1,85.669,85.63,10.14308175]
[1772131002839,10.14308175,85.67,85.596,40.88976119]
[1772131002840,0.1,85.659,85.607,0.4544758]
[1772131003346,0.28432314,85.639,85.602,0.4544758]
[1772131003550,0.28432314,85.659,85.621,0.4544758]
[1772131004052,0.28432314,85.649,85.621,0.4544758]
[1772131004543,10.14308175,85.68,85.64,10.14308175]
[1772131005067,10.14308175,85.69,85.641,0.4544758]
[1772131005357,11.95580454,85.679,85.643,0.4544758]
[1772131005560,11.95580454,85.679,85.642,11.67651386]
[1772131005561,11.76738615,85.709,85.661,0.4544758]
[1772131005767,0.1,85.708,85.661,0.4544758]
[1772131006053,10.14308175,85.7,85.661,0.4544758]
[1772131006358,10.14308175,85.69,85.645,0.4544758]
[1772131006658,0.38432314,85.679,85.632,0.4544758]
[1772131006833,40.83585153,85.709,85.651,0.4544758]
[1772131007035,46.64974491,85.746,85.631,40.8730483]
[1772131007036,1e-08,85.732,85.701,0.4544758]
[1772131007251,1e-08,85.732,85.71,10.59755755]
[1772131007458,10.14308175,85.77,85.721,0.4544758]
[1772131007664,11.66085567,85.757,85.72,10.59755755]
[1772131008156,0.1,85.782,85.73,10.14308175]
[1772131008460,0.1,85.779,85.74,10.14308175]
[1772131008671,0.1,85.768,85.717,0.4544758]
[1772131008843,10.14308175,85.75,85.717,0.4544758]
[1772131009168,3.69383402,85.797,85.717,0.4544758]
[1772131009169,10.14308175,85.74,85.717,0.4544758]
[1772131009346,10.14308175,85.74,85.719,0.4544758]
[1772131009546,0.1,85.767,85.719,0.4544758]
[1772131010054,10.14308175,85.74,85.719,0.4544758]
[1772131011148,10.14308175,85.76,85.72,0.4544758]
[1772131011351,10.14308175,85.75,85.722,0.4544758]
[1772131011658,0.1,85.78,85.722,0.4544758]
[1772131011860,10.14308175,85.75,85.722,0.4544758]
[1772131012065,0.1,85.78,85.722,0.4544758]
[1772131012066,10.14308175,85.78,85.722,0.4544758]
[1772131012449,46.60147296,85.835,85.741,0.4544758]
[1772131012450,0.47799052,85.815,85.741,0.4544758]
[1772131012765,11.65288174,85.816,85.741,0.4544758]
[1772131012972,10.14308175,85.81,85.771,0.4544758]
[1772131013157,0.47799052,85.824,85.771,0.4544758]
[1772131013358,0.47799052,85.834,85.773,0.4544758]
[1772131013552,10.14308175,85.82,85.773,0.4544758]
[1772131014160,10.14308175,85.81,85.773,0.4544758]
[1772131014351,10.14308175,85.79,85.763,0.4544758]
[1772131014672,0.76231366,85.809,85.763,0.4544758]
[1772131014871,10.14308175,85.79,85.763,0.4544758]
[1772131015045,10.14308175,85.77,85.763,0.4544758]
[1772131015248,10.14308175,85.77,85.744,0.4544758]
[1772131015452,0.47799052,85.796,85.744,0.4544758]
[1772131015677,10.14308175,85.75,85.744,0.4544758]
[1772131015972,10.14308175,85.75,85.67,10.14308175]
[1772131016174,10.14308175,85.75,85.667,210.11591394]
[1772131016175,10.14308175,85.72,85.667,210.11591394]
[1772131016366,10.14308175,85.68,85.629,11.67828656]
[1772131016663,0.47799052,85.713,85.629,11.67828656]
[1772131016664,10.14308175,85.67,85.629,87.5871492]
[1772131016866,0.47799052,85.702,85.632,3.69383402]
[1772131017044,10.14308175,85.66,85.632,3.69383402]
[1772131017245,0.47799052,85.702,85.629,105.10457904]
[1772131017446,0.47799052,85.702,85.629,46.71314624]
[1772131017661,10.14308175,85.69,85.633,3.69383402]
[1772131017858,10.14308175,85.7,85.634,6.52862234]
[1772131018172,0.5,85.729,85.635,0.14216157]
[1772131018374,10.14308175,85.71,85.654,0.28432314]
[1772131018759,10.14308175,85.7,85.643,3.69383402]
[1772131018959,10.14308175,85.7,85.644,0.14216157]
[1772131019158,10.14308175,85.71,85.65,10.14308175]
[1772131019462,10.14308175,85.72,85.661,0.28432314]
[1772131019652,10.14308175,85.71,85.655,0.28432314]
[1772131019978,10.14308175,85.71,85.66,10.14308175]
[1772131020464,10.64308175,85.7,85.651,40.86350422]
[1772131020674,0.5,85.714,85.651,40.86350422]
[1772131020968,40.82632481,85.729,85.62,10.14308175]
[1772131020969,10.14308175,85.68,85.64,11.67678654]
[1772131021153,10.14308175,85.69,85.64,11.67678654]
[1772131021360,10.14308175,85.67,85.621,11.67937772]
[1772131021558,10.14308175,85.68,85.628,29.19572943]
[1772131021866,10.14308175,85.67,85.628,29.19572943]
[1772131022668,10.14308175,85.68,85.628,29.19572943]
[1772131022864,10.14308175,85.67,85.628,29.19572943]
[1772131023065,10.14308175,85.65,85.621,11.67937772]
[1772131023370,0.5,85.659,85.603,11.82399515]
[1772131023572,29.17892555,85.679,85.606,3.69383402]
[1772131023573,10.14308175,85.66,85.606,3.69383402]
[1772131024069,10.14308175,85.65,85.603,40.88641753]
[1772131024267,10.14308175,85.64,85.603,40.88641753]
[1772131024565,10.64308175,85.65,85.603,40.88641753]
[1772131024768,10.14308175,85.64,85.603,40.88641753]
[1772131025566,10.14308175,85.63,85.581,40.89692804]
[1772131025873,10.14308175,85.63,85.584,3.69383402]
[1772131026463,10.14308175,85.62,85.581,40.89692804]
[1772131027772,10.14308175,85.62,85.572,3.69383402]
[1772131027967,0.5,85.619,85.569,40.90266334]
[1772131028168,3.69383402,85.681,85.569,40.90266334]
[1772131028169,0.5,85.648,85.58,10.14308175]
[1772131028353,10.14308175,85.63,85.571,0.28432314]
[1772131028554,0.5,85.629,85.571,0.28432314]
[1772131028858,0.5,85.619,85.569,40.90266334]
[1772131029259,10.14308175,85.61,85.569,40.90266334]
[1772131029974,10.14308175,85.6,85.569,29.2161881]
[1772131030473,0.5,85.599,85.569,29.2161881]
[1772131030671,0.5,85.589,85.559,11.68784113]
[1772131031270,10.1264456,85.58,85.559,11.68784113]
[1772131031861,10.1264456,85.58,85.531,40.92083571]
[1772131032069,10.1264456,85.58,85.534,3.83599559]
[1772131032270,10.1264456,85.58,85.534,3.69383402]
[1772131032465,10.1264456,85.57,85.531,40.92083571]
[1772131032670,0.5,85.569,85.531,40.92083571]
[1772131034083,0.5,85.569,85.531,29.22916837]
[1772131034279,0.5,85.559,85.524,11.69262429]
[1772131034584,0.5,85.581,85.54,10.1264456]
[1772131034880,0.5,85.581,85.53,10.1264456]
[1772131035060,0.5,85.597,85.53,10.1264456]
[1772131035261,0.5,85.609,85.55,10.1264456]
[1772131035574,0.5,85.609,85.533,3.69383402]
[1772131035575,0.5,85.589,85.534,0.28432314]
[1772131035766,0.5,85.589,85.54,10.1264456]
[1772131036166,0.5,85.589,85.541,40.91605194]
[1772131036384,0.5,85.579,85.541,40.91605194]
[1772131038265,0.5,85.579,85.531,40.92083571]
[1772131039082,0.5,85.577,85.531,40.92083571]
[1772131039265,0.5,85.569,85.531,40.92083571]
[1772131040282,0.5,85.58,85.53,10.1264456]
[1772131040998,0.5,85.569,85.521,40.92562059]
[1772131041569,0.5,85.559,85.521,40.92562059]
[1772131041775,0.5,85.549,85.521,11.69303445]
[1772131042383,46.72804918,85.602,85.501,70.17461784]
[1772131042589,140.15744352,85.618,85.501,70.17461784]
[1772131042590,0.5,85.569,85.52,10.1264456]
[1772131042883,0.5,85.569,85.51,10.1264456]
[1772131043885,0.5,85.569,85.52,10.1264456]
[1772131044200,0.5,85.569,85.53,10.1264456]
[1772131044404,0.5,85.569,85.531,40.92083571]
[1772131044968,10.1264456,85.59,85.531,87.6875051]
[1772131045179,0.5,85.589,85.531,87.6875051]
[1772131045576,0.5,85.589,85.54,10.1264456]
[1772131045791,0.5,85.588,85.54,10.1264456]
[1772131045988,0.5,85.569,85.531,40.92083571]
[1772131046495,0.5,85.567,85.521,40.92562059]
[1772131046696,46.72089963,85.615,85.53,10.1264456]
[1772131046697,0.5,85.577,85.53,10.1264456]
[1772131047996,0.5,85.577,85.521,40.92562059]
[1772131048597,0.5,85.569,85.521,40.92562059]
[1772131048973,40.89931756,85.576,85.521,40.92562059]
[1772131048974,10.1264456,85.55,85.521,40.92562059]
[1772131049178,0.5,85.549,85.521,11.69303445]
[1772131050272,0.5,85.549,85.501,40.93519374]
[1772131050674,0.5,85.547,85.501,40.93519374]
[1772131050869,0.5,85.539,85.501,40.93519374]
[1772131051169,0.5,85.539,85.51,10.1264456]
[1772131052187,0.5,85.549,85.51,10.1264456]
[1772131052502,0.5,85.549,85.511,40.9304066]
[1772131052791,10.1264456,85.56,85.511,40.9304066]
[1772131052792,0.5,85.564,85.53,10.1264456]
[1772131052972,0.5,85.564,85.52,10.1264456]
[1772131054785,0.5,85.564,85.521,40.92562059]
[1772131056693,58.40240794,85.613,85.5,46.78336269]
[1772131056694,0.5,85.549,85.501,11.69576964]
[1772131056993,0.5,85.539,85.501,40.93519374]
[1772131057499,0.5,85.529,85.501,11.69576964]
[1772131058897,0.5,85.529,85.491,11.69713771]
[1772131059292,0.5,85.527,85.491,40.93998198]
[1772131059796,0.5,85.568,85.491,87.72853282]
[1772131060093,40.90266334,85.569,85.491,87.72853282]
[1772131060094,0.5,85.559,85.52,10.1264456]
[1772131060693,0.5,85.559,85.51,10.1264456]
[1772131061096,0.5,85.549,85.511,40.9304066]
[1772131061877,0.5,85.549,85.52,10.1264456]
[1772131063107,10.1264456,85.6,85.55,10.1264456]
[1772131063414,10.1264456,85.61,85.56,10.1264456]
[1772131064903,11.67965054,85.619,85.56,10.1264456]
[1772131065116,0.47128198,85.608,85.561,40.90648776]
[1772131066299,0.47128198,85.608,85.57,10.1264456]
[1772131066501,0.47128198,85.608,85.561,40.90648776]
[1772131066694,0.47128198,85.606,85.561,40.90648776]
[1772131068009,0.47128198,85.606,85.57,10.1264456]
[1772131068393,58.38084615,85.645,85.561,41.37922762]
[1772131068394,0.47128198,85.622,85.569,0.47273986]
[1772131068611,0.47128198,85.622,85.58,10.1264456]
[1772131069306,0.47128198,85.648,85.6,10.1264456]
[1772131069515,0.47128198,85.639,85.59,10.1264456]
[1772131069887,0.47128198,85.637,85.591,40.89214987]
[1772131070405,0.47128198,85.637,85.6,10.1264456]
[1772131070607,0.47128198,85.649,85.611,0.47273986]
[1772131070786,0.47128198,85.649,85.62,10.1264456]
[1772131071188,0.47128198,85.649,85.592,0.47273986]
[1772131071488,0.47128198,85.639,85.592,0.47273986]
[1772131071793,0.47128198,85.629,85.591,11.68347139]
[1772131071996,0.47128198,85.629,85.59,10.1264456]
[1772131072190,0.47128198,85.627,85.59,10.1264456]
[1772131072407,0.47128198,85.627,85.581,41.3696679]
[1772131073307,0.47128198,85.627,85.581,11.68483658]
[1772131073603,0.47128198,85.619,85.581,11.68483658]
[1772131073986,0.47128198,85.619,85.571,11.6862021]
[1772131074216,0.47128198,85.617,85.571,11.6862021]
[1772131074603,0.47128198,85.599,85.571,11.6862021]
[1772131075492,11.67978696,85.618,85.571,11.6862021]
[1772131075493,0.47128198,85.609,85.571,11.6862021]
[1772131075908,0.47128198,85.599,85.571,11.6862021]
[1772131076207,0.47128198,85.599,85.561,40.90628904]
[1772131076586,0.47128198,85.598,85.561,11.68756793]
[1772131077307,0.47128198,85.598,85.551,29.22204515]
[1772131077607,0.47128198,85.598,85.528,3.69383402]
[1772131077608,0.47128198,85.618,85.57,10.1264456]
[1772131077800,0.47128198,85.609,85.562,0.47273986]
[1772131077989,0.47128198,85.599,85.552,40.91079109]
[1772131078186,0.47128198,85.597,85.552,40.91079109]
[1772131078492,0.47128198,85.589,85.552,11.68879745]
[1772131079592,0.47128198,85.587,85.542,29.22534333]
[1772131080711,11.68388091,85.588,85.542,29.22534333]
[1772131080712,0.47128198,85.579,85.542,29.22534333]
[1772131080900,0.47128198,85.579,85.541,11.69030055]
[1772131081804,0.47128198,85.577,85.532,29.22872937]
[1772131081999,0.47128198,85.642,85.571,0.47273986]
[1772131082201,0.47128198,85.629,85.59,10.1264456]
[1772131082400,29.19262675,85.639,85.56,10.1264456]
[1772131082401,0.47128198,85.609,85.56,10.1264456]
[1772131082711,0.47128198,85.609,85.57,10.1264456]
[1772131082896,0.47128198,85.609,85.571,0.47273986]
[1772131083293,0.47128198,85.629,85.58,10.1264456]
[1772131084112,0.47128198,85.627,85.581,11.68483658]
[1772131084298,0.47128198,85.619,85.581,11.68483658]
[1772131087506,0.47128198,85.619,85.581,40.89692804]
[1772131088699,0.47128198,85.609,85.562,0.47273986]
[1772131089117,0.47128198,85.609,85.563,11.68729474]
[1772131089626,0.45732666,85.599,85.551,29.22225557]
[1772131090032,0.45732666,85.599,85.551,29.677697]
[1772131090320,0.45732666,85.599,85.552,0.45544143]
[1772131090509,0.45732666,85.599,85.56,10.1264456]
[1772131090714,0.45732666,85.599,85.552,0.45544143]
[1772131091315,40.88402952,85.608,85.546,11.68961728]
[1772131091316,0.45732666,85.589,85.546,11.68961728]
[1772131091824,0.45732666,85.587,85.542,11.69016389]
[1772131092126,0.45732666,85.579,85.542,41.37101506]
[1772131092430,0.45732666,85.579,85.543,0.45544143]
[1772131093125,0.45732666,85.589,85.551,0.45544143]
[1772131094019,0.45732666,85.587,85.552,11.68879745]
[1772131095027,0.45732666,85.587,85.552,40.91079109]
[1772131095318,0.45732666,85.587,85.552,11.68879745]
[1772131095810,0.45732666,85.587,85.543,11.69002723]
[1772131096324,0.45732666,85.579,85.543,11.69002723]
[1772131098606,10.12695638,85.59,85.551,0.45544143]
[1772131098607,0.45732666,85.588,85.551,0.45544143]
[1772131099328,0.45732666,85.579,85.543,11.69002723]
[1772131100326,0.45732666,85.577,85.532,29.22863467]
[1772131100508,0.45732666,85.577,85.532,29.6840761]
[1772131100711,0.45732666,85.577,85.541,0.45544143]
[1772131100909,0.45732666,85.588,85.551,0.45544143]
[1772131101829,46.71740967,85.622,85.551,0.45544143]
[1772131101830,0.45732666,85.609,85.551,0.45544143]
[1772131102026,0.45732666,85.618,85.59,10.12695638]
[1772131102213,0.45732666,85.639,85.59,10.58239781]
[1772131102415,0.45732666,85.638,85.592,0.45544143]
[1772131102614,0.45732666,85.637,85.591,41.3475913]
[1772131103228,0.45732666,85.637,85.592,0.45544143]
[1772131103630,0.45732666,85.629,85.591,40.89214987]
[1772131103926,0.45732666,85.629,85.582,0.45544143]
[1772131104131,0.45732666,85.629,85.583,11.68456352]
[1772131104429,10.12695638,85.63,85.591,11.68347139]
[1772131104430,11.67842294,85.628,85.591,11.68347139]
[1772131104724,0.45732666,85.627,85.591,11.68347139]
[1772131105109,0.45732666,85.627,85.591,40.89214987]
[1772131105310,0.45732666,85.636,85.61,10.12695638]
[1772131105606,0.45732666,85.652,85.611,0.45544143]
[1772131105812,0.45732666,85.652,85.62,10.12695638]
[1772131106009,0.45732666,85.652,85.611,0.45544143]
[1772131106215,0.45732666,85.649,85.61,10.12695638]
[1772131106534,0.45732666,85.647,85.611,11.68074196]
[1772131106827,0.45732666,85.647,85.612,0.45544143]
[1772131107030,0.45732666,85.647,85.602,0.45544143]
[1772131107237,0.45732666,85.639,85.6,10.12695638]
[1772131107733,0.45732666,85.639,85.601,11.68210651]
[1772131108435,0.45732666,85.639,85.602,0.45544143]
[1772131108732,0.45732666,85.639,85.603,11.68183358]
[1772131108934,11.67705924,85.638,85.603,11.68183358]
[1772131109728,11.67147142,85.679,85.63,10.12695638]
[1772131109923,40.85014997,85.679,85.63,10.12695638]
[1772131110125,0.28432314,85.678,85.63,10.12695638]
[1772131110428,10.12695638,85.67,85.624,0.45544143]
[1772131110932,0.45732666,85.668,85.626,0.45544143]
[1772131113130,0.45732666,85.659,85.623,11.67909413]
[1772131113322,0.45732666,85.659,85.62,10.58239781]
[1772131113518,0.45732666,85.659,85.62,0.45544143]
[1772131113730,0.45732666,85.659,85.611,11.68074196]
[1772131113927,0.45732666,85.649,85.611,11.68074196]
[1772131115018,0.45732666,85.637,85.592,0.45544143]
[1772131115224,0.45732666,85.637,85.601,0.45544143]
[1772131115442,0.45732666,85.647,85.611,0.45544143]
[1772131115622,0.45732666,85.647,85.6,10.61643123]
[1772131115822,0.45732666,85.647,85.601,0.48947485]
[1772131117142,10.12695638,85.65,85.611,0.48947485]
[1772131117143,0.45425858,85.645,85.611,0.48947485]
[1772131119221,0.45425858,85.645,85.612,11.68060552]
[1772131119850,0.45425858,85.645,85.612,40.88211932]
[1772131120041,0.45425858,85.645,85.612,11.68060552]
[1772131120228,0.49515275,85.643,85.612,11.68060552]
[1772131121734,0.49515275,85.639,85.601,12.17977123]
[1772131121932,0.49515275,85.639,85.602,0.49766472]
[1772131122438,0.49515275,85.639,85.601,11.68210651]
[1772131122936,0.49515275,85.639,85.602,0.49766472]
[1772131123339,0.49515275,85.639,85.611,0.49766472]
[1772131123931,0.49515275,85.639,85.612,11.68060552]
[1772131124538,0.49515275,85.637,85.607,11.68123382]
[1772131124741,0.59515275,85.68,85.63,10.12695638]
[1772131124942,0.49515275,85.659,85.62,10.12695638]
[1772131125251,0.49515275,85.659,85.621,0.49766472]
[1772131125441,0.49515275,85.659,85.613,0.49766472]
[1772131126156,0.49515275,85.658,85.623,0.49766472]
[1772131127551,0.49515275,85.658,85.625,0.49766472]
[1772131128652,0.49515275,85.656,85.619,11.67964758]
[1772131128950,0.49515275,85.656,85.62,0.49766472]
[1772131129155,0.49515275,85.656,85.621,0.49766472]
[1772131130057,0.49515275,85.654,85.614,11.68025864]
[1772131130243,0.49515275,85.654,85.621,0.49766472]
[1772131133060,0.49515275,85.652,85.622,11.67924131]
[1772131134462,0.49515275,85.652,85.623,0.49766472]
[1772131135343,11.67528692,85.651,85.624,11.67896851]
[1772131135664,12.17043967,85.651,85.624,11.67896851]
[1772131135862,0.49515275,85.651,85.624,11.67896851]
[1772131136163,11.67482685,85.655,85.625,0.49766472]
[1772131136348,0.49515275,85.654,85.624,11.67896851]
[1772131136745,0.49515275,85.654,85.616,0.49766472]
[1772131137448,0.49515275,85.66,85.62,10.12695638]
[1772131137657,0.49515275,85.659,85.621,0.49766472]
[1772131138967,0.49515275,85.659,85.623,0.49766472]
[1772131139774,0.49515275,85.657,85.623,0.49766472]
[1772131140144,0.49515275,85.657,85.63,10.12695638]
[1772131140676,0.49515275,85.661,85.631,0.49766472]
[1772131141243,0.49515275,85.659,85.632,11.67787742]
[1772131141780,0.49515275,85.667,85.64,10.6246211]
[1772131142061,0.49515275,85.678,85.641,0.49766472]
[1772131142959,0.49515275,85.678,85.651,0.49766472]
[1772131143201,0.49515275,85.678,85.65,10.12695638]
[1772131143202,0.1,85.68,85.66,10.6246211]
[1772131143381,0.49515275,85.679,85.64,10.12695638]
[1772131143768,0.49515275,85.679,85.621,40.87782202]
[1772131143769,0.49515275,85.679,85.651,0.49766472]
[1772131144268,0.1,85.68,85.651,0.49766472]
[1772131145082,0.49515275,85.679,85.641,0.49766472]
[1772131145387,0.49515275,85.678,85.643,0.49766472]
[1772131145775,11.67150347,85.679,85.592,0.49766472]
[1772131145776,0.49515275,85.645,85.592,0.49766472]
[1772131145971,10.12695638,85.61,85.566,0.49766472]
[1772131146283,10.12695638,85.6,85.566,0.49766472]
[1772131146480,10.12695638,85.62,85.571,0.49766472]
[1772131147072,0.28432314,85.648,85.571,0.49766472]
[1772131147291,10.12695638,85.61,85.571,0.49766472]
[1772131147473,11.68101484,85.609,85.573,0.49766472]
[1772131147791,10.12695638,85.6,85.573,0.49766472]
[1772131147987,12.17616759,85.609,85.573,0.49766472]
[1772131148175,10.12695638,85.58,85.554,0.49766472]
[1772131148776,10.12695638,85.57,85.545,0.49766472]
[1772131148992,10.62210913,85.58,85.545,0.49766472]
[1772131150182,10.12695638,85.57,85.547,0.49859049]
[1772131151393,0.49109783,85.596,85.549,0.49859049]
[1772131151697,10.12695638,85.59,85.551,0.49859049]
[1772131153496,10.12686218,85.59,85.553,0.49859049]
[1772131154500,10.12686218,85.59,85.555,0.49859049]
[1772131155000,10.12686218,85.6,85.555,0.49859049]
[1772131155196,10.12686218,85.59,85.555,0.49859049]
[1772131155389,10.12686218,85.58,85.555,0.49859049]
[1772131156380,10.12686218,85.57,85.545,0.49859049]
[1772131156686,10.12686218,85.57,85.508,3.69383402]
[1772131156687,0.49109783,85.569,85.536,0.49859049]
[1772131156880,10.61796001,85.56,85.532,12.19012114]
[1772131159805,10.12686218,85.55,85.527,11.69217112]
[1772131160989,10.12686218,85.57,85.528,0.49859049]
[1772131161312,10.61796001,85.57,85.528,0.49859049]
[1772131161515,0.49109783,85.569,85.528,0.49859049]
[1772131161893,0.49109783,85.569,85.53,0.49859049]
[1772131162094,10.12686218,85.56,85.53,0.49859049]
[1772131162414,10.61796001,85.57,85.53,0.49859049]
[1772131162818,0.49109783,85.569,85.53,0.49859049]
[1772131163195,0.49109783,85.559,85.529,11.69194074]
[1772131163821,0.49109783,85.559,85.51,10.12686218]
[1772131164028,10.12686218,85.56,85.53,0.49859049]
[1772131164694,11.68784113,85.559,85.53,0.49859049]
[1772131165095,12.17893896,85.559,85.53,0.49859049]
[1772131165296,11.68674839,85.567,85.53,0.49859049]
[1772131165495,0.49109783,85.568,85.53,0.49859049]
[1772131165918,0.49109783,85.568,85.532,0.49859049]
[1772131166095,12.17784622,85.567,85.532,0.49859049]
[1772131166301,0.49109783,85.559,85.522,0.49859049]
[1772131167411,11.68674839,85.567,85.522,0.49859049]
[1772131167412,3.78305395,85.56,85.522,0.49859049]
[1772131168516,0.49109783,85.577,85.531,0.49859049]
[1772131168719,3.78305395,85.57,85.531,0.49859049]
[1772131168906,3.78305395,85.58,85.531,0.49859049]
[1772131171614,3.78305395,85.58,85.533,0.49859049]
[1772131172198,3.78305395,85.57,85.533,0.49859049]
[1772131172398,3.78305395,85.56,85.533,0.49859049]
[1772131173210,3.78305395,85.55,85.533,0.49859049]
[1772131173418,3.78305395,85.55,85.532,11.69153065]
[1772131173614,3.78305395,85.54,85.518,11.69344465]
[1772131173801,3.78305395,85.54,85.519,0.49859049]
[1772131175718,0.45859452,85.539,85.508,0.45022637]
[1772131175918,3.78305395,85.54,85.508,0.45022637]
[1772131176220,4.24164847,85.54,85.508,0.45022637]
[1772131177199,3.78305395,85.54,85.508,0.45022637]
[1772131177401,3.78305395,85.55,85.508,0.45022637]
[1772131177907,0.45859452,85.557,85.51,3.78305395]
[1772131178129,11.68825097,85.556,85.511,0.45022637]
[1772131178302,12.14684549,85.556,85.511,0.45022637]
[1772131178501,0.45859452,85.556,85.511,0.45022637]
[1772131178801,3.78305395,85.55,85.511,0.45022637]
[1772131180921,0.46593413,85.574,85.53,3.78305395]
[1772131181229,0.46593413,85.574,85.531,0.45029925]
[1772131181603,0.46593413,85.569,85.531,0.45029925]
[1772131181802,0.46593413,85.559,85.522,0.45029925]
[1772131182006,4.24898808,85.55,85.522,0.45029925]
[1772131183230,0.46593413,85.549,85.523,11.69276101]
[1772131183605,0.46593413,85.549,85.523,40.92466353]
[1772131186606,0.46593413,85.549,85.523,11.69276101]
[1772131186923,0.46593413,85.549,85.523,12.14306026]
[1772131188909,0.46593413,85.549,85.523,11.69276101]
[1772131191212,3.78305395,85.55,85.522,29.23224433]
[1772131191527,3.78305395,85.55,85.522,29.68254358]
[1772131193228,0.46593413,85.549,85.522,12.14319698]
[1772131194831,0.46593413,85.549,85.523,0.45029925]
[1772131197512,0.46593413,85.579,85.525,0.45029925]
[1772131197719,0.46593413,85.569,85.531,0.45029925]
[1772131198338,0.46593413,85.578,85.531,0.45029925]
[1772131198529,0.46593413,85.578,85.541,0.45029925]
[1772131198722,3.78305395,85.58,85.541,0.45029925]
[1772131199037,0.46593413,85.579,85.541,0.45029925]
[1772131199723,0.46593413,85.577,85.543,0.45029925]
[1772131200037,0.46593413,85.569,85.543,0.45029925]
[1772131201439,4.24898808,85.56,85.534,12.14149579]
[1772131201637,0.46593413,85.549,85.513,0.45029925]
[1772131202445,15.46943264,85.57,85.521,0.45029925]
[1772131202744,0.46593413,85.569,85.531,0.45029925]
[1772131203625,0.46593413,85.569,85.532,40.92035728]
[1772131203838,0.46593413,85.569,85.533,0.45029925]
[1772131204238,4.24898808,85.56,85.533,0.45029925]
[1772131204539,4.24898808,85.56,85.532,40.92035728]
[1772131204540,0.46593413,85.559,85.517,0.45029925]
[1772131204723,0.46593413,85.543,85.509,0.45029925]
[1772131205428,0.46593413,85.55,85.511,0.45029925]
[1772131205625,0.46593413,85.557,85.511,0.45029925]
[1772131207425,0.46593413,85.557,85.521,0.45029925]
[1772131209328,0.46593413,85.557,85.523,0.45029925]
[1772131209644,0.46593413,85.573,85.531,0.48045665]
[1772131210339,3.78305395,85.58,85.541,0.48045665]
[1772131210641,0.49878552,85.569,85.541,0.48045665]
[1772131210839,0.49878552,85.569,85.526,0.48045665]
[1772131211228,0.49878552,85.569,85.531,0.48045665]
[1772131211541,11.68661181,85.568,85.533,0.48045665]
[1772131211743,0.49878552,85.567,85.533,0.48045665]
[1772131213445,0.49878552,85.565,85.534,11.69125727]
[1772131213647,0.49878552,85.559,85.529,11.69184728]
[1772131213943,0.49878552,85.565,85.53,3.78305395]
[1772131214145,0.49878552,85.565,85.531,0.48045665]
[1772131215239,0.49878552,85.572,85.531,0.48045665]
[1772131215546,11.6862021,85.571,85.533,0.48045665]
[1772131215842,0.49878552,85.57,85.533,0.48045665]
[1772131216052,0.49878552,85.569,85.533,0.48045665]
[1772131218441,0.49878552,85.567,85.534,11.69125727]
[1772131218648,0.49878552,85.559,85.526,0.48045665]
[1772131220147,0.49878552,85.559,85.527,11.69221415]
[1772131220332,0.49878552,85.559,85.528,0.48045665]
[1772131220843,0.49878552,85.569,85.53,3.78172226]
[1772131221148,0.49878552,85.568,85.531,0.48045665]
[1772131222647,0.49878552,85.568,85.532,11.69153065]
[1772131222943,11.68674839,85.567,85.533,0.48045665]
[1772131223149,0.49878552,85.566,85.533,0.48045665]
[1772131225440,0.49878552,85.566,85.535,0.48045665]
[1772131225841,0.49878552,85.564,85.534,11.69125727]
[1772131226147,0.49878552,85.559,85.518,0.48045665]
[1772131226335,0.49878552,85.549,85.522,11.69281857]
[1772131226650,0.49878552,85.549,85.514,11.69396247]
[1772131227139,0.49878552,85.549,85.514,12.17441912]